bitfinex-derivatives/quotes_ETHF0:USTF0_20250918
["timestamp","ask_amount","ask_price","bid_price","bid_amount"]
[1758218190564,1.86584644,4612.5,4612.4,0.4704]
[1758218190764,0.6307,4612.1,4612.0,0.4704]
[1758218190959,1.86582633,4612.1,4612.0,0.4704]
[1758218191165,5.07362633,4612.1,4612.0,0.4704]
[1758218191667,5.07362633,4612.1,4611.5,0.6504]
[1758218191868,1.0827,4611.6,4611.5,0.4704]
[1758218192166,1.6280782,4611.6,4611.5,0.7722]
[1758218192362,1.0827,4611.6,4611.5,0.7722]
[1758218192861,1.84392441,4611.6,4611.5,0.7722]
[1758218193263,1.3017,4611.6,4611.5,0.7722]
[1758218194465,1.3017,4611.6,4611.5,0.4704]
[1758218195166,1.3017,4611.6,4611.3,0.04328609]
[1758218195368,0.6307,4611.4,4611.3,0.34508609]
[1758218195567,1.0836,4611.4,4611.3,0.34508609]
[1758218196068,1.0836,4611.4,4611.3,0.79058609]
[1758218196269,1.0836,4611.4,4611.3,0.48878609]
[1758218196761,1.0836,4611.4,4611.3,0.46718609]
[1758218197265,5.84151532,4611.4,4610.8,0.4455]
[1758218197464,0.6253,4610.6,4610.5,1.252]
[1758218198762,0.3027,4610.6,4610.5,1.252]
[1758218199966,40.8,4611.4,4610.6,0.4455]
[1758218200173,40.8,4611.4,4611.2,1.072]
[1758218200174,2.07465088,4611.3,4611.2,1.072]
[1758218201472,1.08015088,4611.3,4611.2,1.072]
[1758218201682,0.75969579,4611.3,4611.2,1.072]
[1758218202468,0.4529,4612.1,4611.2,1.072]
[1758218202668,0.4529,4612.1,4611.0,0.187]
[1758218202669,0.4529,4612.1,4611.5,1.259]
[1758218202861,0.219,4611.7,4611.5,1.259]
[1758218203062,0.219,4611.7,4611.6,1.072]
[1758218203264,0.5217,4611.7,4611.6,1.072]
[1758218203772,3.5105,4612.1,4612.0,1.259]
[1758218203967,4.20444562,4612.1,4612.0,1.259]
[1758218204367,4.50714562,4612.1,4612.0,1.259]
[1758218205474,3.98544562,4612.1,4612.0,1.259]
[1758218205676,3.74862526,4612.1,4612.0,1.259]
[1758218206378,0.54082526,4612.1,4612.0,1.259]
[1758218206980,3.2078,4612.6,4612.5,1.259]
[1758218207175,4.20570097,4612.6,4612.5,1.259]
[1758218207381,0.99790097,4612.6,4612.5,1.259]
[1758218207576,1.30060097,4612.6,4612.5,1.259]
[1758218207878,2.07610097,4612.6,4612.5,0.4455]
[1758218208080,0.6253,4612.2,4612.1,3.5224]
[1758218208378,1.40420097,4612.2,4612.1,3.8343]
[1758218208677,1.40420097,4612.2,4612.1,1.072]
[1758218209872,1.85710097,4612.2,4612.1,0.4455]
[1758218210785,1.85699383,4612.2,4612.1,0.4455]
[1758218211182,1.85699383,4612.2,4612.1,0.7601]
[1758218212076,0.77879383,4612.2,4612.1,1.072]
[1758218212280,0.99779383,4612.2,4612.1,1.072]
[1758218212685,0.77879383,4612.2,4612.1,1.072]
[1758218213381,1.08149383,4612.2,4612.1,1.072]
[1758218213582,1.83779383,4612.2,4612.1,1.072]
[1758218214386,1.39449383,4612.2,4612.1,1.072]
[1758218214887,1.83779383,4612.2,4612.1,1.072]
[1758218215184,1.39449383,4612.2,4612.1,1.072]
[1758218215887,1.83779383,4612.2,4612.1,1.072]
[1758218216474,1.83779383,4612.2,4612.1,0.7601]
[1758218216689,1.83779383,4612.2,4612.1,0.4455]
[1758218216880,1.83779383,4612.2,4611.9,0.0216]
[1758218217081,1.0709,4612.0,4611.9,0.4683]
[1758218217381,1.84969383,4612.0,4611.9,0.4683]
[1758218217576,1.84969383,4612.0,4611.9,0.0216]
[1758218217782,1.96559383,4612.0,4611.9,0.0216]
[1758218218489,1.84969383,4612.0,4611.9,0.4683]
[1758218220282,1.84969383,4612.0,4611.9,0.4467]
[1758218220481,1.96559383,4612.0,4611.1,0.4467]
[1758218220681,0.3146,4611.2,4611.1,1.0513]
[1758218220989,0.86469092,4611.2,4611.1,1.0513]
[1758218221188,1.40639383,4611.2,4611.1,1.0513]
[1758218221389,2.06869383,4611.2,4610.6,0.4467]
[1758218221584,1.0709,4610.7,4610.6,0.7447]
[1758218221777,1.40639383,4610.7,4610.6,1.0513]
[1758218221978,1.09339383,4610.7,4610.6,1.0513]
[1758218224087,1.40639383,4610.7,4610.6,1.0513]
[1758218224885,1.84969383,4610.7,4610.6,0.7447]
[1758218225585,1.40639383,4610.7,4610.6,1.0513]
[1758218225987,1.09339383,4610.7,4610.6,1.0513]
[1758218226189,1.82149383,4610.7,4610.6,0.7452]
[1758218226794,1.82149383,4610.7,4610.6,0.4467]
[1758218227592,1.82149383,4610.7,4610.4,0.0216]
[1758218227892,1.0438,4610.5,4610.4,0.0216]
[1758218228098,1.82259383,4610.5,4610.4,0.0216]
[1758218228393,1.0438,4610.2,4610.1,0.7612]
[1758218228592,1.82259383,4610.2,4610.1,0.7612]
[1758218230197,1.58550291,4610.2,4610.1,0.7612]
[1758218230392,1.14870291,4610.2,4610.1,1.073]
[1758218231597,0.85740291,4610.2,4610.1,1.073]
[1758218231806,0.54170291,4610.2,4610.1,1.073]
[1758218232202,0.219,4610.3,4610.1,1.073]
[1758218232404,0.5347,4610.3,4610.2,1.073]
[1758218232904,0.826,4610.3,4610.2,1.073]
[1758218233112,1.80594824,4610.3,4610.2,0.4627]
[1758218233607,1.80594824,4610.3,4610.2,0.7612]
[1758218234310,1.2628,4610.3,4610.2,0.7612]
[1758218235203,0.826,4610.3,4610.2,1.073]
[1758218235800,3.2078,4610.6,4610.5,0.1783]
[1758218236111,5.25111153,4610.6,4610.5,0.9395]
[1758218237613,2.04331153,4610.6,4610.5,0.9395]
[1758218238608,1.82431153,4610.6,4610.5,0.9395]
[1758218238805,3.2078,4611.1,4610.5,1.2513]
[1758218239006,3.8148,4611.1,4611.0,0.4768]
[1758218239213,4.59580602,4611.1,4611.0,1.2513]
[1758218239414,4.81480602,4611.1,4611.0,1.2513]
[1758218241912,1.60700602,4611.1,4611.0,1.2513]
[1758218242116,5.25160602,4611.1,4611.0,1.2513]
[1758218242411,5.25177689,4611.1,4611.0,1.2513]
[1758218243413,4.81497689,4611.1,4611.0,1.2513]
[1758218244610,5.25177689,4611.1,4611.0,1.2513]
[1758218245111,3.98897689,4611.1,4611.0,1.2513]
[1758218245312,4.20797689,4611.1,4611.0,1.2513]
[1758218245714,4.52367689,4611.1,4611.0,1.2513]
[1758218246312,4.81497689,4611.1,4611.0,1.2513]
[1758218246617,2.04397689,4611.1,4611.0,0.4627]
[1758218246806,0.2913,4610.7,4610.6,0.4627]
[1758218247011,0.84427689,4610.7,4610.6,0.4627]
[1758218247216,1.38817689,4610.7,4610.6,0.7612]
[1758218248013,1.82497689,4610.7,4610.6,0.7612]
[1758218248214,1.82497689,4610.7,4610.1,1.073]
[1758218248215,0.607,4610.2,4610.1,1.073]
[1758218248521,1.82741389,4610.2,4610.1,1.073]
[1758218248817,1.82741534,4610.2,4610.1,1.073]
[1758218250014,1.82741534,4610.2,4610.1,0.4627]
[1758218250418,1.82741534,4610.2,4610.1,0.7612]
[1758218251415,1.39061534,4610.2,4610.1,1.073]
[1758218251920,1.82741534,4610.2,4610.1,1.073]
[1758218252112,1.39061534,4610.2,4610.1,1.073]
[1758218252318,1.82741534,4610.2,4610.1,1.073]
[1758218252512,1.82741534,4610.2,4610.1,0.7612]
[1758218252714,5.03521534,4610.2,4609.9,0.0216]
[1758218253023,1.0438,4610.0,4609.9,0.0216]
[1758218253224,1.82741534,4610.0,4609.9,0.0216]
[1758218253522,1.82741534,4610.0,4609.9,0.4627]
[1758218255317,1.50651534,4610.0,4609.5,0.1772]
[1758218255512,1.0279,4609.7,4609.6,0.7612]
[1758218255718,2.03051534,4609.7,4609.6,0.7612]
[1758218256119,2.03051534,4609.7,4609.6,0.4627]
[1758218256325,2.03051534,4609.7,4609.1,1.0674]
[1758218256326,0.5897,4609.2,4609.1,1.0674]
[1758218256524,1.37292858,4609.2,4609.1,1.0674]
[1758218257023,0.54505277,4609.2,4609.1,1.0674]
[1758218258827,0.5109,4609.7,4609.6,1.0674]
[1758218259021,0.74896529,4609.7,4609.6,1.0674]
[1758218259328,1.29292916,4609.7,4609.6,1.0674]
[1758218260628,1.59072916,4609.7,4609.6,1.0674]
[1758218261628,0.78202916,4609.7,4609.6,1.0674]
[1758218262527,1.07392916,4609.7,4609.6,1.0674]
[1758218262725,1.37172916,4609.7,4609.6,1.0674]
[1758218263630,1.07392916,4609.7,4609.6,1.0674]
[1758218264233,1.37172916,4609.7,4609.6,1.0674]
[1758218265932,1.79262916,4609.7,4609.6,1.0674]
[1758218266234,1.07392916,4609.7,4609.6,1.0674]
[1758218266739,1.37172916,4609.7,4609.6,1.0674]
[1758218267034,1.79262916,4609.7,4609.6,1.0674]
[1758218268129,1.55456387,4609.7,4609.6,1.0674]
[1758218268828,1.7923428,4609.7,4609.6,1.0674]
[1758218269040,1.79234116,4609.7,4609.6,1.0674]
[1758218269630,1.55456387,4609.7,4609.6,1.0674]
[1758218270031,1.55456387,4609.7,4609.6,0.7614]
[1758218270932,1.13366387,4609.7,4609.6,1.0674]
[1758218271345,1.37221029,4609.7,4609.6,1.0674]
[1758218271842,1.79311029,4609.7,4609.6,1.0674]
[1758218272531,1.79311029,4609.7,4609.6,0.7614]
[1758218272726,1.79311029,4609.7,4609.6,1.0674]
[1758218274036,1.78361029,4609.7,4609.6,1.0674]
[1758218275336,1.783787,4609.7,4609.6,1.0674]
[1758218275733,1.783787,4609.7,4609.6,0.7614]
[1758218276641,1.372387,4609.7,4609.6,1.0596]
[1758218277435,1.074587,4609.7,4609.6,1.0596]
[1758218279242,1.089787,4609.7,4609.6,1.0596]
[1758218280344,1.791087,4609.7,4609.6,1.0596]
[1758218280642,1.379687,4609.7,4609.6,1.0596]
[1758218282534,0.782687,4609.7,4609.6,1.0596]
[1758218282741,0.782687,4609.7,4609.6,5.0596]
[1758218282945,0.782687,4609.7,4609.6,5.27654]
[1758218283440,0.782687,4609.7,4609.6,5.66679]
[1758218283632,0.5261,4610.7,4610.6,1.0335]
[1758218283834,1.60038505,4610.7,4610.6,1.0335]
[1758218284039,2.01178505,4610.7,4610.6,1.0335]
[1758218284841,1.60038505,4610.7,4610.6,1.0335]
[1758218285445,0.78438505,4610.7,4610.6,1.0335]
[1758218288447,1.35618505,4610.7,4610.6,0.7112]
[1758218288644,1.76138505,4610.7,4610.6,0.7112]
[1758218288841,0.977,4610.2,4610.1,0.4649]
[1758218289036,1.76138505,4610.2,4610.1,0.4649]
[1758218289446,1.76138505,4610.2,4610.1,0.75]
[1758218289753,0.5718,4609.7,4609.6,3.9578]
[1758218290049,0.5718,4609.7,4609.6,4.2594]
[1758218290642,0.2863,4609.7,4609.6,4.2594]
[1758218291342,0.2863,4610.1,4610.0,0.1832]
[1758218291542,3.4268,4610.7,4610.0,0.7699]
[1758218291543,3.2078,4610.7,4610.0,0.7699]
[1758218291846,0.219,4610.5,4610.0,0.7699]
[1758218292046,0.219,4610.5,4610.3,1.0516]
[1758218292047,1.06914906,4610.4,4610.3,1.0516]
[1758218292644,1.75984906,4610.4,4610.3,0.75]
[1758218293747,1.75982254,4610.4,4610.3,0.75]
[1758218293944,1.35462254,4610.4,4610.3,1.0516]
[1758218294250,0.78282254,4610.4,4610.3,1.0516]
[1758218294740,1.06912254,4610.4,4610.3,1.0516]
[1758218295744,1.75982254,4610.4,4610.3,1.0516]
[1758218296139,1.75982254,4610.4,4610.3,0.75]
[1758218296642,1.35462254,4610.4,4610.3,1.0516]
[1758218296842,0.78282254,4610.4,4610.3,1.0516]
[1758218297546,0.78288097,4610.4,4610.3,1.0516]
[1758218298352,1.06918097,4610.4,4610.3,1.0516]
[1758218298754,1.75988097,4610.4,4610.3,1.0516]
[1758218298950,1.75988097,4610.4,4610.3,0.4649]
[1758218299151,1.75988097,4610.4,4610.3,0.75]
[1758218301842,0.78288097,4610.4,4610.3,1.0516]
[1758218302046,0.54411287,4610.4,4610.3,1.0516]
[1758218302246,0.78153549,4610.4,4610.3,1.0516]
[1758218303351,1.06783549,4610.4,4610.3,1.0516]
[1758218303553,1.35333549,4610.4,4610.3,1.0516]
[1758218303950,1.06783549,4610.4,4610.3,1.0516]
[1758218306055,0.78153549,4610.4,4610.3,1.0516]
[1758218307654,1.06783549,4610.4,4610.3,1.0516]
[1758218307849,1.35333549,4610.4,4610.3,1.0516]
[1758218308050,1.75853549,4610.4,4610.3,0.75]
[1758218309459,0.78153549,4610.4,4610.3,1.0516]
[1758218310161,1.06783549,4610.4,4610.3,1.0516]
[1758218310660,1.35333549,4610.4,4610.3,1.0516]
[1758218315857,1.74303549,4610.4,4610.3,1.0516]
[1758218317063,0.78153549,4610.4,4610.3,1.0516]
[1758218317263,0.78220006,4610.4,4610.3,1.0516]
[1758218318666,1.09330006,4610.4,4610.3,1.0516]
[1758218319261,1.77180006,4610.4,4610.3,1.0516]
[1758218320568,1.09330006,4610.4,4610.3,1.0516]
[1758218320770,0.78220006,4610.4,4610.3,1.0516]
[1758218322572,1.09330006,4610.4,4610.3,1.0516]
[1758218322771,0.78220006,4610.4,4610.3,1.0516]
[1758218323769,1.09330006,4610.4,4610.3,1.0516]
[1758218328475,0.78220006,4610.4,4610.3,1.0516]
[1758218329076,0.78215573,4610.4,4610.3,1.0516]
[1758218329279,0.9896,4610.3,4610.2,0.7389]
[1758218329471,1.77175573,4610.3,4610.2,0.7389]
[1758218330273,1.38205573,4610.3,4610.2,1.0307]
[1758218330770,1.77175573,4610.3,4610.2,0.4521]
[1758218333184,1.38136329,4610.3,4610.2,1.0307]
[1758218333682,1.77106329,4610.3,4610.2,1.0307]
[1758218333985,1.77105843,4610.3,4610.2,1.0307]
[1758218334885,1.38135843,4610.3,4610.2,1.0307]
[1758218337184,1.76145843,4610.3,4610.2,0.4521]
[1758218341186,1.38135843,4610.3,4610.2,1.0221]
[1758218341388,0.78145843,4610.3,4610.2,1.0221]
[1758218342186,1.35575843,4610.3,4610.2,1.0221]
[1758218342491,1.08285843,4610.3,4610.2,1.0221]
[1758218344890,0.78145843,4610.3,4610.2,1.0221]
[1758218345684,0.78145843,4610.3,4610.2,4.2299]
[1758218345887,2.5056973,4611.7,4611.6,0.7219]
[1758218346195,1.1672,4611.7,4611.6,0.7219]
[1758218346983,0.7926,4611.7,4611.6,0.995]
[1758218347588,0.2991,4611.7,4611.6,0.995]
[1758218347886,0.219,4612.0,4611.9,0.995]
[1758218347887,0.5181,4612.0,4611.9,0.995]
[1758218348087,3.2078,4612.4,4612.3,0.2923]
[1758218348286,4.156,4612.4,4612.3,0.995]
[1758218348585,4.156,4612.4,4612.3,0.7219]
[1758218349491,0.9482,4612.4,4612.3,0.7219]
[1758218350687,0.9482,4612.4,4612.3,0.4296]
[1758218352794,4.156,4612.4,4612.3,0.4296]
[1758218353990,4.156,4612.4,4612.3,0.7219]
[1758218354188,3.7814,4612.4,4612.3,0.995]
[1758218354590,0.5736,4612.4,4612.3,0.995]
[1758218354985,0.2991,4612.4,4612.3,0.995]
[1758218356900,0.5736,4612.4,4612.3,0.995]
[1758218357698,0.9482,4612.4,4612.3,0.995]
[1758218357998,1.72074198,4612.4,4612.3,0.7219]
[1758218358904,1.72074198,4612.4,4612.1,0.0216]
[1758218359095,1.42164198,4612.3,4612.2,0.7219]
[1758218359400,1.34608946,4612.3,4612.2,0.995]
[1758218359603,1.07158946,4612.3,4612.2,0.995]
[1758218362905,0.77248946,4612.3,4612.2,0.995]
[1758218365208,0.5391773,4612.3,4612.2,0.995]
[1758218369409,0.5391773,4612.3,4612.2,1.214]
[1758218374112,0.76920301,4612.3,4612.2,1.214]
[1758218376411,1.06830301,4612.3,4612.2,1.214]
[1758218379516,1.35360301,4612.3,4612.2,0.995]
[1758218379719,1.35360301,4612.3,4612.2,1.214]
[1758218380414,1.71960301,4612.3,4612.2,0.995]
[1758218380614,1.71960301,4612.3,4612.1,0.219]
[1758218380818,0.9346,4612.1,4612.0,0.4552]
[1758218381119,1.70380301,4612.1,4612.0,0.9387]
[1758218385319,1.70380301,4612.1,4612.0,1.1154]
[1758218389229,1.33780301,4612.1,4612.0,0.5051]
[1758218389428,1.70380301,4612.1,4612.0,0.9387]
[1758218390525,0.9346,4611.9,4611.8,3.4484]
[1758218390831,1.33780301,4611.9,4611.8,4.199]
[1758218391030,1.70380301,4611.9,4611.8,4.199]
[1758218391731,1.4737773,4611.9,4611.8,4.199]
[1758218392426,1.33708943,4611.9,4611.8,4.199]
[1758218392725,0.76849152,4611.9,4611.8,4.199]
[1758218392924,1.1077773,4611.9,4611.8,4.199]
[1758218393228,1.70309252,4611.9,4611.8,3.9275]
[1758218393624,1.33709252,4611.9,4611.8,4.199]
[1758218396133,0.76840901,4611.9,4611.8,4.199]
[1758218396433,1.66330901,4611.9,4611.8,4.199]
[1758218396933,1.30670901,4611.9,4611.8,4.199]
[1758218398840,0.76840901,4611.9,4611.8,4.199]
[1758218399644,1.03620901,4611.9,4611.8,4.199]
[1758218400239,1.66330901,4611.9,4611.8,0.4336]
[1758218400445,0.8949,4611.8,4611.7,0.7154]
[1758218400744,1.66330901,4611.8,4611.6,0.0216]
[1758218400933,0.76840901,4611.7,4611.6,0.0216]
[1758218401137,1.66330901,4611.7,4611.6,0.0216]
[1758218401339,1.30670901,4611.7,4611.2,0.4354]
[1758218401533,1.03620901,4611.6,4611.5,0.7328]
[1758218401737,1.03790308,4611.6,4611.5,1.1682]
[1758218402248,0.77010308,4611.6,4611.5,1.1682]
[1758218402746,1.30840308,4611.6,4611.5,1.1682]
[1758218402948,1.66500308,4611.6,4611.5,1.1682]
[1758218403139,1.66500308,4611.6,4611.5,0.8884]
[1758218403536,1.30840308,4611.6,4611.5,1.1682]
[1758218403749,1.66500308,4611.6,4611.5,0.4354]
[1758218405955,1.66500308,4611.6,4611.5,0.8895]
[1758218406157,1.30840308,4611.6,4611.5,1.1741]
[1758218406456,1.03790308,4611.6,4611.5,1.1741]
[1758218406648,1.30710308,4611.6,4611.5,1.1741]
[1758218407152,1.65830308,4611.6,4611.5,1.1741]
[1758218407356,1.65830308,4611.6,4611.5,0.4354]
[1758218408645,1.30710308,4611.6,4611.5,1.1734]
[1758218409254,1.65830308,4611.6,4611.5,0.4354]
[1758218409854,0.8872,4611.5,4611.4,0.7021]
[1758218410056,1.30610308,4611.5,4611.4,0.9867]
[1758218410253,1.65730308,4611.5,4611.4,0.9867]
[1758218410958,1.30610308,4611.5,4611.4,0.9867]
[1758218411856,1.03690308,4611.5,4611.4,0.9867]
[1758218413357,0.77010308,4611.5,4611.4,0.9867]
[1758218414460,1.03690308,4611.5,4611.4,0.9867]
[1758218417254,1.30610308,4611.5,4611.4,0.9867]
[1758218419464,0.77010308,4611.5,4611.4,0.9867]
[1758218420861,1.30610308,4611.5,4611.4,0.9867]
[1758218426065,1.30610308,4611.5,4611.3,0.4228]
[1758218426066,4.86510308,4611.5,4611.3,0.4228]
[1758218426265,1.30610308,4611.4,4611.3,0.4228]
[1758218426570,1.65730308,4611.4,4611.3,0.4228]
[1758218427061,1.65730308,4611.4,4611.2,0.0216]
[1758218427062,1.87630308,4611.4,4611.2,0.0216]
[1758218427268,1.30610308,4611.3,4611.2,0.0216]
[1758218427469,1.87416308,4611.3,4611.2,0.0216]
[1758218427669,1.87416308,4611.3,4610.8,0.4228]
[1758218427869,0.8872,4610.9,4610.8,0.4228]
[1758218428069,1.65730308,4610.9,4610.8,0.4228]
[1758218428466,1.65730308,4610.9,4610.5,0.4228]
[1758218428768,0.8872,4610.6,4610.5,0.4228]
[1758218428973,1.65730308,4610.6,4610.5,0.4228]
[1758218429475,1.65730308,4610.6,4610.5,0.8762]
[1758218429668,1.30610308,4610.6,4610.5,1.1608]
[1758218429972,0.77010308,4610.6,4610.5,5.1608]
[1758218430173,0.54087137,4610.6,4610.5,5.1608]
[1758218430368,0.54087137,4610.6,4610.5,4.738]
[1758218430562,0.2668,4611.4,4611.3,0.9867]
[1758218430767,1.03774718,4611.4,4611.3,0.9867]
[1758218431770,0.77094034,4611.4,4611.3,0.9867]
[1758218432367,0.54123504,4611.4,4611.3,0.9867]
[1758218433370,3.2078,4612.5,4612.4,0.7021]
[1758218433371,4.095,4612.5,4612.4,0.7021]
[1758218433670,4.86276921,4612.5,4612.4,0.7021]
[1758218434074,4.86276921,4612.5,4612.4,0.4228]
[1758218434773,4.86276921,4612.5,4612.1,0.4228]
[1758218434973,0.8872,4611.7,4611.6,0.4228]
[1758218435174,0.8872,4611.7,4611.6,0.7021]
[1758218435175,1.65496921,4611.7,4611.6,0.7021]
[1758218435572,1.30376921,4611.7,4611.6,0.7021]
[1758218435777,1.30376921,4611.7,4611.6,0.9643]
[1758218436070,0.76776921,4611.7,4611.6,0.9643]
[1758218436276,0.54134831,4611.7,4611.6,0.9643]
[1758218436577,0.54134831,4611.7,4611.6,4.9643]
[1758218437674,3.4963,4612.5,4612.4,0.9535]
[1758218437874,4.2638103,4612.5,4612.4,0.9535]
[1758218441976,3.5445,4613.5,4613.4,0.269]
[1758218442181,4.88543171,4613.5,4613.4,0.6913]
[1758218442878,4.88543171,4613.5,4613.4,0.4223]
[1758218444283,4.88543171,4613.5,4613.1,0.4223]
[1758218444481,0.9106,4613.1,4613.0,0.4398]
[1758218444686,1.45145758,4613.1,4613.0,0.4398]
[1758218444983,1.45145758,4613.1,4613.0,0.8621]
[1758218445178,1.67726791,4613.1,4613.0,0.8621]
[1758218447887,1.34056791,4613.1,4613.0,0.8621]
[1758218448388,1.34056791,4613.1,4613.0,1.1243]
[1758218448590,1.67726791,4613.1,4613.0,0.4223]
[1758218448990,1.67726791,4613.1,4613.0,0.8621]
[1758218449688,1.34056791,4613.1,4613.0,0.8621]
[1758218449888,1.34056791,4613.1,4613.0,1.1243]
[1758218452893,0.79971033,4613.1,4613.0,1.1243]
[1758218453989,0.5739,4613.1,4613.0,1.1243]
[1758218455093,0.79995878,4613.1,4613.0,1.1243]
[1758218455295,0.5739,4613.1,4613.0,1.1243]
[1758218455494,0.902,4613.1,4613.0,1.1243]
[1758218456696,0.5739,4613.1,4613.0,1.1243]
[1758218457194,0.902,4613.1,4613.0,0.4223]
[1758218458497,1.12815699,4613.1,4613.0,0.4223]
[1758218458896,1.12815563,4613.1,4613.0,0.4223]
[1758218459189,0.902,4613.1,4612.8,0.0216]
[1758218459395,0.8679,4612.9,4612.8,0.0216]
[1758218459590,1.09418758,4612.9,4612.8,0.0216]
[1758218459793,0.5398,4612.7,4612.6,0.4031]
[1758218459992,0.8679,4612.7,4612.6,0.4031]
[1758218460192,0.8679,4612.7,4612.6,0.6709]
[1758218460393,0.8679,4612.7,4612.6,0.4031]
[1758218460798,0.8679,4612.7,4612.6,0.6709]
[1758218461499,0.5398,4612.7,4612.6,0.9538]
[1758218462304,1.09446836,4612.7,4612.6,0.9538]
[1758218463006,1.63539807,4612.7,4612.6,0.9538]
[1758218463499,1.63539807,4612.7,4612.6,0.6709]
[1758218465507,1.30729807,4612.7,4612.6,0.9538]
[1758218466107,1.62969807,4612.7,4612.6,0.9538]
[1758218467806,1.62969807,4612.7,4612.6,0.4031]
[1758218468014,0.8802,4612.5,4612.4,0.4267]
[1758218468211,1.32529807,4612.5,4612.4,0.9665]
[1758218468411,1.32529807,4612.5,4612.4,0.9449]
[1758218469811,0.4444,4612.0,4611.6,0.4051]
[1758218470014,0.5578,4610.7,4610.6,0.4051]
[1758218470214,1.64831855,4610.7,4610.6,0.4051]
[1758218470715,0.5578,4610.2,4610.1,0.6763]
[1758218470914,1.32591855,4610.2,4610.1,0.9449]
[1758218472320,1.42175019,4610.2,4610.1,0.9449]
[1758218473711,0.8802,4610.2,4610.1,0.9449]
[1758218474709,0.5578,4610.2,4610.1,0.9449]
[1758218476113,0.4096,4608.5,4607.5,3.2078]
[1758218476313,0.4096,4608.4,4607.8,3.2078]
[1758218476517,0.9674,4608.4,4608.3,0.2712]
[1758218476713,3.2078,4608.9,4608.3,0.5398]
[1758218477018,3.6174,4608.9,4608.3,0.75679]
[1758218477212,3.6174,4608.9,4608.3,0.5398]
[1758218477621,0.2849,4608.4,4608.3,0.5398]
[1758218477919,0.9674,4608.4,4608.3,0.5398]
[1758218478317,0.7267,4608.0,4607.9,0.2712]
[1758218479019,1.1363,4608.0,4607.9,0.2712]
[1758218480320,1.1363,4608.0,4607.9,0.5398]
[1758218480627,0.9674,4608.9,4608.8,0.2712]
[1758218481321,0.9674,4608.9,4608.8,0.5398]
[1758218481819,0.9674,4608.9,4608.8,0.9449]
[1758218482209,0.4096,4609.4,4608.9,0.4051]
[1758218482522,0.9674,4609.4,4609.3,0.9449]
[1758218482826,0.9674,4609.8,4609.7,0.5398]
[1758218483725,0.9674,4609.8,4609.7,0.9449]
[1758218484626,0.9674,4609.8,4609.7,0.5398]
[1758218484818,0.9674,4609.8,4609.7,0.9449]
[1758218485014,0.221,4609.9,4609.7,0.5398]
[1758218485218,3.7656,4610.3,4610.2,0.2712]
[1758218485720,0.5578,4610.3,4610.2,0.2712]
[1758218485925,0.9674,4610.3,4610.2,0.2712]
[1758218488324,0.9674,4610.3,4609.8,0.4051]
[1758218490922,0.9674,4610.3,4609.7,3.2078]
[1758218491224,0.4096,4610.2,4609.7,3.6129]
[1758218491420,0.3899,4610.5,4608.9,3.479]
[1758218491421,0.1689,4609.5,4608.9,3.479]
[1758218491624,1.1363,4609.0,4608.5,0.4051]
[1758218491926,1.1363,4608.5,4608.4,0.5398]
[1758218492127,1.1363,4608.5,4608.4,0.9449]
[1758218492620,1.1363,4608.5,4608.4,0.5398]
[1758218493223,0.9674,4607.9,4607.8,3.2078]
[1758218493729,0.9674,4607.9,4607.8,3.479]
[1758218494822,0.9674,4607.9,4607.8,0.2712]
[1758218495022,0.1689,4608.0,4607.4,35.149]
[1758218495023,0.1689,4607.5,4607.4,35.149]
[1758218495225,0.5785,4607.5,4607.4,35.7751]
[1758218495520,0.6945,4607.5,4607.4,1.1659]
[1758218495721,0.6717,4607.9,4607.8,0.5445]
[1758218495924,1.72224428,4607.9,4607.8,0.5445]
[1758218497025,1.72224428,4607.9,4607.8,0.2686]
[1758218497625,0.78914428,4607.9,4607.3,3.2078]
[1758218497930,0.9331,4607.4,4607.3,3.7523]
[1758218498222,1.72285089,4607.4,4607.3,3.7523]
[1758218498429,1.72285089,4607.4,4607.3,3.4764]
[1758218499423,1.72285089,4607.4,4607.0,0.221]
[1758218499628,0.163,4607.5,4607.0,0.4896]
[1758218499629,0.9331,4607.1,4607.0,0.4896]
[1758218499829,1.72285089,4607.1,4607.0,0.2686]
[1758218500031,1.72285089,4607.1,4607.0,0.5445]
[1758218500329,1.72285089,4607.1,4607.0,0.9445]
[1758218500723,1.46145089,4607.1,4607.0,0.9445]
[1758218500924,0.79042266,4607.1,4607.0,1.0792]
[1758218502632,0.79042266,4607.1,4607.0,1.3002]
[1758218503131,1.46212266,4607.1,4607.0,1.1655]
[1758218503828,0.79042266,4607.1,4607.0,1.1655]
[1758218504527,0.54318282,4607.1,4607.0,1.1655]
[1758218504823,1.4626752,4607.1,4607.0,1.1655]
[1758218505828,1.7240752,4607.1,4607.0,1.1655]
[1758218506027,1.7240752,4607.1,4607.0,0.7655]
[1758218506533,1.7240752,4607.1,4607.0,0.5445]
[1758218507833,1.7240752,4607.1,4607.0,0.9445]
[1758218509030,0.9331,4606.9,4606.8,3.2078]
[1758218509241,1.7240752,4606.9,4606.8,3.2078]
[1758218511538,1.7240752,4606.9,4606.3,0.0217]
[1758218511539,0.9331,4606.4,4606.3,3.4505]
[1758218511738,1.7240752,4606.4,4606.3,3.7191]
[1758218511940,1.7240752,4606.4,4606.3,3.6974]
[1758218512339,1.1989752,4606.4,4606.3,4.3733]
[1758218513033,1.0546752,4606.4,4606.3,4.3733]
[1758218513240,1.7240752,4606.4,4606.3,4.1523]
[1758218513834,1.7240752,4606.4,4606.3,4.3733]
[1758218514037,0.5384,4605.8,4605.7,3.4799]
[1758218514337,1.7461752,4605.8,4605.7,3.4799]
[1758218514936,1.7461752,4605.8,4605.7,0.2721]
[1758218515737,0.9552,4605.4,4605.3,0.43427753]
[1758218515934,1.74587972,4605.4,4605.3,0.70637753]
[1758218516137,1.20299238,4605.4,4605.3,1.37407753]
[1758218516434,0.24736535,4605.4,4605.3,1.37407753]